bitfinex-derivatives/quotes_BTCF0:USTF0_20241218
["timestamp","ask_amount","ask_price","bid_price","bid_amount"]
[1734504653966,0.77203354,103600.0,103590.0,0.11997062]
[1734504654170,0.41123354,103600.0,103590.0,0.11997062]
[1734504655560,0.41245648,103600.0,103590.0,0.11997062]
[1734504655968,0.41245648,103600.0,103590.0,0.15553937]
[1734504656166,0.41245648,103600.0,103590.0,0.51643236]
[1734504656167,0.11245648,103600.0,103590.0,0.51643236]
[1734504657054,0.11245648,103600.0,103590.0,0.40916199]
[1734504657055,0.41245648,103600.0,103590.0,0.40916199]
[1734504657261,0.77325648,103600.0,103590.0,0.04836199]
[1734504657562,0.048273,103590.0,103560.0,0.048279]
[1734504657767,0.048283,103560.0,103550.0,0.00144836]
[1734504657974,0.51635337,103560.0,103550.0,0.00144836]
[1734504658173,0.51635337,103560.0,103530.0,0.048296]
[1734504658174,0.048789,103550.0,103530.0,0.048296]
[1734504658353,0.7216,103540.0,103530.0,0.048296]
[1734504658557,0.7216,103540.0,103530.0,0.04840847]
[1734504659461,0.7216,103540.0,103530.0,0.15567884]
[1734504659976,0.7216,103540.0,103530.0,0.04840847]
[1734504660766,0.7216,103540.0,103530.0,0.04940847]
[1734504661472,0.7216,103540.0,103530.0,0.15567884]
[1734504661967,0.7216,103540.0,103530.0,0.04840847]
[1734504663269,0.71773076,103540.0,103530.0,0.15567884]
[1734504663475,0.3608,103550.0,103530.0,0.15567884]
[1734504663670,0.3608,103550.0,103540.0,0.15556237]
[1734504664670,0.3613,103560.0,103550.0,0.048288]
[1734504664874,0.3613,103560.0,103550.0,0.15555837]
[1734504665372,0.3608,103560.0,103550.0,0.15555837]
[1734504666169,0.4267338,103580.0,103570.0,0.048278]
[1734504666874,0.4750078,103580.0,103570.0,0.048278]
[1734504667070,0.3949338,103580.0,103570.0,0.048278]
[1734504667573,0.396157,103580.0,103570.0,0.048278]
[1734504668980,0.396157,103580.0,103570.0,0.15554837]
[1734504669177,0.396657,103580.0,103570.0,0.15554837]
[1734504669364,0.396657,103580.0,103570.0,0.048278]
[1734504669569,0.04828,103570.0,103560.0,0.048282]
[1734504669875,0.40908,103570.0,103560.0,0.048282]
[1734504670274,0.3608,103570.0,103560.0,0.048282]
[1734504671282,0.3608,103570.0,103560.0,0.15555237]
[1734504671469,0.396657,103580.0,103570.0,0.048278]
[1734504671668,0.757457,103580.0,103570.0,0.048278]
[1734504671865,0.805731,103580.0,103570.0,0.048278]
[1734504672377,0.724057,103580.0,103570.0,0.048278]
[1734504672584,0.724057,103580.0,103570.0,0.15554837]
[1734504674370,0.002457,103580.0,103570.0,0.45563826]
[1734504674571,0.002457,103580.0,103570.0,0.81643826]
[1734504675167,1e-06,103580.0,103570.0,0.81643826]
[1734504676076,0.4708,103600.0,103570.0,0.81643826]
[1734504676281,0.4708,103600.0,103590.0,0.15553937]
[1734504676282,0.1105,103600.0,103590.0,0.15553937]
[1734504677375,0.11,103600.0,103590.0,0.15553937]
[1734504677980,0.11,103600.0,103590.0,0.19126456]
[1734504678285,0.36140642,103610.0,103600.0,0.048264]
[1734504678579,0.36140642,103610.0,103600.0,0.11976178]
[1734504678782,0.36140642,103610.0,103600.0,0.048264]
[1734504678977,0.44674376,103610.0,103600.0,0.11976178]
[1734504679281,0.36090642,103610.0,103600.0,0.11976178]
[1734504679485,0.47468955,103610.0,103600.0,0.11976178]
[1734504679980,0.52294955,103610.0,103600.0,0.11976178]
[1734504680281,0.52344955,103610.0,103600.0,0.11976178]
[1734504680677,0.52344955,103610.0,103600.0,0.048264]
[1734504681586,0.048268,103600.0,103590.0,0.048268]
[1734504681772,0.048268,103600.0,103570.0,8.989e-05]
[1734504681773,0.048274,103580.0,103570.0,8.989e-05]
[1734504681976,0.91210291,103580.0,103570.0,8.989e-05]
[1734504682287,0.91210291,103580.0,103570.0,0.04836789]
[1734504682578,0.83605718,103580.0,103570.0,0.04836789]
[1734504682984,0.83605718,103580.0,103570.0,0.11986567]
[1734504683281,0.92192684,103580.0,103570.0,0.11986567]
[1734504683486,0.80746966,103580.0,103570.0,0.11986567]
[1734504684290,0.7216,103580.0,103570.0,0.11986567]
[1734504686480,0.85574146,103580.0,103570.0,0.04836789]
[1734504686878,0.769874,103580.0,103570.0,0.04836789]
[1734504687891,0.85574146,103580.0,103570.0,0.04836789]
[1734504688779,1.29342242,103580.0,103540.0,0.1695283]
[1734504688983,0.409088,103550.0,103540.0,0.09803052]
[1734504689584,0.409088,103550.0,103540.0,0.04973952]
[1734504689886,0.409088,103550.0,103540.0,0.04982232]
[1734504690081,0.49495546,103550.0,103540.0,0.04982232]
[1734504690278,0.409088,103550.0,103540.0,0.00153132]
[1734504690584,0.49495546,103550.0,103540.0,0.04982332]
[1734504691291,0.49495546,103550.0,103540.0,0.0483748]
[1734504691491,0.49108622,103550.0,103540.0,0.11987258]
[1734504691789,0.44279822,103550.0,103540.0,0.11987258]
[1734504691996,0.35693076,103550.0,103540.0,0.15574396]
[1734504692285,0.3608,103560.0,103550.0,0.048288]
[1734504692487,0.3608,103560.0,103550.0,0.15565716]
[1734504695985,0.3608,103570.0,103550.0,0.51645716]
[1734504696206,0.3608,103570.0,103560.0,0.15565116]
[1734504696781,0.0691,103590.0,103560.0,0.62382032]
[1734504696782,0.3608,103590.0,103560.0,0.62382032]
[1734504696982,0.3608,103590.0,103580.0,0.15564316]
[1734504698693,0.3608,103590.0,103580.0,0.15576818]
[1734504698891,0.36224857,103600.0,103590.0,0.048269]
[1734504699088,0.36224857,103600.0,103590.0,0.15563816]
[1734504704500,0.41051257,103600.0,103590.0,0.048269]
[1734504705593,0.41051257,103600.0,103590.0,0.15563816]
[1734504705788,0.36224857,103600.0,103590.0,0.15563816]
[1734504708087,0.3608,103600.0,103590.0,0.15563816]
[1734504708395,0.36090642,103610.0,103600.0,0.048264]
[1734504708590,0.36090642,103610.0,103600.0,0.15563316]
[1734504710196,0.00010642,103610.0,103600.0,0.15563316]
[1734504710702,0.00010642,103610.0,103600.0,0.26300232]
[1734504711002,0.00010642,103610.0,103600.0,0.15563316]
[1734504711301,0.00010642,103610.0,103600.0,0.26300232]
[1734504711792,0.00010642,103610.0,103600.0,0.27300232]
[1734504711993,0.00010642,103610.0,103600.0,0.12975326]
[1734504712390,0.36090642,103610.0,103600.0,0.12975326]
[1734504713705,0.3608,103620.0,103600.0,0.12975326]
[1734504713897,0.3608,103620.0,103610.0,0.11974926]
[1734504714092,0.3608,103630.0,103610.0,0.11974926]
[1734504714287,0.3608,103630.0,103620.0,0.11974426]
[1734504714488,0.3608,103630.0,103620.0,0.19123352]
[1734504714699,0.3608,103630.0,103620.0,0.11974426]
[1734504715197,0.3608,103630.0,103620.0,0.19123352]
[1734504715395,0.3613,103630.0,103620.0,0.19123352]
[1734504716298,0.3608,103630.0,103620.0,0.19123352]
[1734504717196,0.3608,103630.0,103620.0,0.19132652]
[1734504717393,0.3944225,103650.0,103640.0,0.048246]
[1734504717596,0.3944225,103650.0,103640.0,0.11973526]
[1734504717787,0.0336225,103650.0,103640.0,0.11973526]
[1734504718598,0.0001225,103650.0,103640.0,0.11973526]
[1734504720986,0.4396,103660.0,103640.0,0.11973526]
[1734504720987,0.43585326,103660.0,103640.0,0.11973526]
[1734504721193,0.43585326,103660.0,103650.0,0.048241]
[1734504721394,0.76375326,103660.0,103650.0,0.11973026]
[1734504721996,0.70625326,103660.0,103650.0,0.11973026]
[1734504722304,0.75449026,103660.0,103650.0,0.048241]
[1734504722997,0.82597952,103660.0,103640.0,0.048244]
[1734504723198,0.51573326,103650.0,103640.0,0.048244]
[1734504723396,0.048247,103640.0,103630.0,0.048246]
[1734504723596,0.409047,103640.0,103630.0,0.096493]
[1734504723899,0.409046,103640.0,103630.0,0.16798226]
[1734504724899,0.3608,103640.0,103630.0,0.16798226]
[1734504725703,0.3608,103640.0,103630.0,0.096493]
[1734504726001,0.3608,103640.0,103630.0,0.16798226]
[1734504727095,0.4301,103650.0,103640.0,0.048246]
[1734504727399,0.3608,103650.0,103640.0,0.11973526]
[1734504729295,0.3613,103660.0,103640.0,0.19122452]
[1734504729497,0.3613,103660.0,103650.0,0.19121952]
[1734504730001,0.3613,103660.0,103650.0,0.11973026]
[1734504730194,0.3613,103660.0,103650.0,0.19121952]
[1734504730399,0.3613,103660.0,103650.0,0.22481952]
[1734504731191,0.36086996,103670.0,103650.0,0.88561952]
[1734504731392,0.00056996,103670.0,103660.0,0.07158564]
[1734504731604,0.00056996,103670.0,103660.0,0.11982264]
[1734504731805,0.36092,103690.0,103680.0,0.048227]
[1734504731992,0.36092,103690.0,103680.0,0.19120552]
[1734504732197,0.00012,103690.0,103680.0,0.19120552]
[1734504732598,0.36092,103690.0,103680.0,0.19120552]
[1734504733202,0.36092,103690.0,103680.0,0.22650552]
[1734504733599,0.00012,103690.0,103680.0,0.22650552]
[1734504733800,0.00012,103690.0,103680.0,0.15501626]
[1734504734003,0.00012,103690.0,103680.0,0.11971626]
[1734504734504,0.00012,103690.0,103680.0,0.55200552]
[1734504737403,0.00012,103690.0,103680.0,0.19120552]
[1734504737614,0.00012,103690.0,103680.0,0.11971626]
[1734504738106,0.00012,103690.0,103680.0,0.19120552]
[1734504738407,0.00062,103690.0,103680.0,0.19120552]
[1734504739299,0.36142,103690.0,103680.0,0.11971626]
[1734504739499,0.409643,103690.0,103680.0,0.11971626]
[1734504740002,0.00062,103690.0,103680.0,0.19120552]
[1734504740399,0.00062,103690.0,103680.0,0.55200552]
[1734504741504,0.00012,103690.0,103680.0,0.55200552]
[1734504741899,0.00012,103690.0,103680.0,0.5712545]
[1734504742406,0.44674976,103710.0,103700.0,0.048218]
[1734504742606,0.3608823,103710.0,103700.0,0.11970726]
[1734504742808,8.23e-05,103710.0,103700.0,0.11970726]
[1734504744516,0.08594976,103710.0,103700.0,0.11970726]
[1734504745413,0.08644976,103710.0,103700.0,0.11970726]
[1734504746408,0.4090953,103710.0,103700.0,0.048218]
[1734504746604,0.49496276,103710.0,103700.0,0.048218]
[1734504746807,0.60947856,103710.0,103700.0,0.048218]
[1734504747117,0.49496276,103710.0,103700.0,0.048218]
[1734504747412,0.60997856,103710.0,103700.0,0.048218]
[1734504747917,0.49546276,103710.0,103700.0,0.048218]
[1734504748111,0.53226276,103710.0,103700.0,0.048218]
[1734504748616,0.53226276,103710.0,103700.0,0.11970726]
[1734504748819,0.44338052,103710.0,103700.0,0.11970726]
[1734504749313,0.44288052,103710.0,103700.0,0.11970726]
[1734504750218,0.35701306,103710.0,103700.0,0.11970726]
[1734504752007,0.3708,103720.0,103710.0,0.048213]
[1734504752308,0.3713,103720.0,103710.0,0.11970226]
[1734504752713,0.419509,103720.0,103710.0,0.11970226]
[1734504753226,0.3713,103720.0,103710.0,0.048213]
[1734504753519,0.45666746,103720.0,103710.0,0.11970226]
[1734504753712,0.3708,103720.0,103710.0,0.11970226]
[1734504754518,0.45666746,103720.0,103710.0,0.11970226]
[1734504754819,0.45666746,103720.0,103710.0,0.048213]
[1734504755119,0.50487646,103720.0,103710.0,0.048213]
[1734504755615,0.61939226,103720.0,103710.0,0.048213]
[1734504756519,0.61968004,103720.0,103710.0,0.048213]
[1734504757814,0.5335248,103720.0,103710.0,0.048213]
[1734504758119,0.5335248,103720.0,103710.0,0.11970226]
[1734504758520,0.67575371,103720.0,103710.0,0.11970226]
[1734504759109,0.67575371,103720.0,103710.0,0.048213]
[1734504759514,0.56123791,103720.0,103710.0,0.048213]
[1734504760727,0.7319126,103720.0,103710.0,0.048213]
[1734504761016,0.58968369,103720.0,103710.0,0.048213]
[1734504761223,0.73367463,103720.0,103710.0,0.048213]
[1734504761420,0.58968369,103720.0,103710.0,0.048213]
[1734504761718,0.73375648,103720.0,103710.0,0.048213]
[1734504761927,0.58968369,103720.0,103710.0,0.048213]
[1734504762109,0.73377142,103720.0,103710.0,0.048213]
[1734504762612,0.73379288,103720.0,103710.0,0.048213]
[1734504763022,0.37299288,103720.0,103710.0,0.048213]
[1734504763311,0.92391819,103720.0,103710.0,0.048213]
[1734504764320,0.048216,103710.0,103700.0,0.11970726]
[1734504764517,0.55711328,103710.0,103700.0,0.11970726]
[1734504766010,0.52431328,103710.0,103700.0,0.11970726]
[1734504766215,0.56257897,103710.0,103700.0,0.11970726]
[1734504768325,0.44728169,103710.0,103700.0,0.15510726]
[1734504769923,0.49549769,103710.0,103700.0,0.11970726]
[1734504770327,0.61079497,103710.0,103700.0,0.11970726]
[1734504771624,0.56257897,103710.0,103700.0,0.11970726]
[1734504772527,0.44728169,103710.0,103700.0,0.11970726]
[1734504772827,0.56257897,103710.0,103700.0,0.11970726]
[1734504773218,0.44728169,103710.0,103700.0,0.11970726]
[1734504775326,0.49549869,103710.0,103700.0,0.11970726]
[1734504776223,0.409017,103710.0,103700.0,0.11970726]
[1734504776527,0.49549869,103710.0,103700.0,0.11970726]
[1734504776915,0.49162945,103710.0,103700.0,0.11970726]
[1734504777114,0.44341245,103710.0,103700.0,0.11970726]
[1734504778326,0.35693076,103710.0,103700.0,0.11970726]
[1734504779234,0.30271082,103710.0,103700.0,0.15193961]
[1734504779418,0.30271082,103710.0,103700.0,0.12876904]
[1734504781127,0.30271082,103710.0,103700.0,0.11970726]
[1734504782723,0.30271082,103710.0,103700.0,0.12876904]
[1734504784236,0.30271082,103710.0,103700.0,0.11970726]
[1734504786329,0.30271082,103710.0,103700.0,0.00906178]
[1734504786631,0.048221,103700.0,103690.0,0.048218]
[1734504786838,0.479921,103700.0,103690.0,0.048218]
[1734504787338,0.56640269,103700.0,103690.0,0.048218]
[1734504787933,0.60210269,103700.0,103690.0,0.048218]
[1734504788737,0.515621,103700.0,103690.0,0.048218]
[1734504789635,0.515621,103700.0,103690.0,0.11970726]
[1734504792141,0.515621,103700.0,103690.0,0.048218]
[1734504792541,0.515621,103700.0,103690.0,0.11970726]
[1734504793336,0.515621,103700.0,103690.0,0.048218]
[1734504793931,0.048227,103690.0,103680.0,0.048226]
[1734504794136,0.409027,103690.0,103680.0,0.11971526]
[1734504795044,0.3608,103690.0,103680.0,0.11971526]
[1734504795845,0.409026,103690.0,103680.0,0.11971526]
[1734504796535,0.409026,103690.0,103680.0,0.048226]
[1734504803346,0.409026,103690.0,103670.0,0.11972126]
[1734504803537,0.409031,103680.0,103670.0,0.11972126]
[1734504804944,0.40516176,103680.0,103670.0,0.11972126]
[1734504805740,0.40516176,103680.0,103670.0,0.048232]
[1734504807845,0.40516176,103680.0,103670.0,0.11972126]
[1734504810850,0.40516176,103680.0,103670.0,0.048232]
[1734504811846,0.048235,103670.0,103660.0,0.08583338]
[1734504812055,0.409035,103670.0,103660.0,0.08583338]
[1734504812553,0.409035,103670.0,103660.0,0.04833338]
[1734504815042,0.445335,103670.0,103660.0,0.04833338]
[1734504815452,0.55192426,103670.0,103660.0,9.638e-05]
[1734504815848,0.59002426,103670.0,103660.0,9.638e-05]
[1734504818256,0.818535,103670.0,103660.0,9.638e-05]
[1734504818455,0.89002426,103670.0,103660.0,9.638e-05]
[1734504819563,0.59002426,103670.0,103660.0,9.638e-05]
[1734504819956,0.518535,103670.0,103660.0,9.638e-05]
[1734504820646,0.59002426,103670.0,103660.0,9.638e-05]
[1734504821364,0.04824,103660.0,103650.0,0.04969195]
[1734504821562,0.48052926,103660.0,103650.0,0.04969195]
[1734504821860,0.48052926,103660.0,103650.0,0.00144695]
[1734504822252,0.48060167,103660.0,103650.0,0.00154391]
[1734504822453,0.48060167,103660.0,103650.0,0.04978891]
[1734504822663,0.40911241,103660.0,103650.0,0.04834196]
[1734504824553,0.36087241,103660.0,103650.0,0.11983122]
[1734504824865,0.30662479,103660.0,103650.0,0.29952048]
[1734504825365,0.3608,103680.0,103670.0,0.048235]
[1734504825864,0.3608,103690.0,103680.0,0.048231]
[1734504826056,0.3608,103690.0,103680.0,0.18992026]
[1734504828968,0.3608,103690.0,103680.0,0.154331]
[1734504833357,0.35693076,103690.0,103680.0,0.154331]
[1734504833762,0.36087287,103700.0,103690.0,0.048226]
[1734504833959,0.36087287,103700.0,103690.0,0.11971526]
[1734504834160,0.36087287,103700.0,103690.0,0.048226]
[1734504834358,0.40909387,103700.0,103690.0,0.048226]
[1734504834561,0.36087287,103700.0,103690.0,0.048226]
[1734504835869,0.36087287,103700.0,103690.0,0.11971526]
[1734504842269,7.287e-05,103700.0,103690.0,0.11971526]
[1734504844371,7.287e-05,103700.0,103690.0,0.11982623]
[1734504845971,7.287e-05,103700.0,103690.0,0.41982623]
[1734504846179,0.3608,103710.0,103690.0,0.78062623]
[1734504846376,0.3608,103710.0,103700.0,0.11971026]
[1734504849876,0.48050626,103710.0,103700.0,0.048221]
[1734504850081,0.51680626,103710.0,103690.0,0.00011097]
[1734504850280,0.51501026,103700.0,103690.0,0.04833597]
[1734504850469,0.51501026,103700.0,103690.0,0.00011097]
[1734504850671,0.55171026,103700.0,103690.0,0.00011097]
[1734504854677,0.63809041,103700.0,103690.0,0.00011097]
[1734504855878,0.63809041,103700.0,103670.0,0.048234]
[1734504855879,0.048235,103680.0,103670.0,0.048234]
[1734504856076,0.769835,103680.0,103670.0,0.048234]
[1734504856275,0.048235,103670.0,103660.0,0.048237]
[1734504856476,0.40303056,103670.0,103660.0,0.048237]
[1734504856990,0.40303056,103670.0,103660.0,0.04834292]
[1734504857393,0.40303056,103670.0,103660.0,0.11983218]
[1734504857586,0.35479556,103670.0,103660.0,0.11983218]
[1734504858088,0.40303056,103670.0,103660.0,0.04834292]
[1734504858287,0.44093056,103670.0,103660.0,0.04834292]
[1734504859382,0.47543056,103670.0,103660.0,0.04834292]
[1734504860489,0.40303056,103670.0,103660.0,0.11983218]
[1734504861180,0.39916132,103670.0,103660.0,0.11983218]
[1734504862096,0.048235,103670.0,103660.0,0.11983218]
[1734504862297,0.4324,103680.0,103660.0,0.11983218]
[1734504862502,0.480634,103680.0,103670.0,0.048237]
[1734504863503,0.409034,103680.0,103670.0,0.11972626]
[1734504865311,0.409034,103680.0,103670.0,0.15752626]
[1734504865501,0.409034,103680.0,103670.0,0.086037]
[1734504865901,0.409034,103680.0,103670.0,0.048237]
[1734504866099,0.48052326,103680.0,103660.0,0.00010592]
[1734504866304,0.409037,103670.0,103660.0,0.04834592]
[1734504866907,0.048237,103670.0,103660.0,0.04834592]
[1734504867410,0.409037,103670.0,103660.0,0.11983518]
[1734504869206,0.409037,103670.0,103660.0,0.04834592]
[1734504870110,0.409037,103670.0,103660.0,0.11983518]
[1734504870300,0.409034,103680.0,103670.0,0.048237]
[1734504882815,0.409034,103680.0,103660.0,0.04834592]
[1734504882816,0.048237,103670.0,103660.0,0.04834592]
[1734504883010,0.409037,103670.0,103660.0,0.04834592]
[1734504883818,0.409037,103670.0,103660.0,0.00010592]
[1734504884016,0.48052626,103670.0,103660.0,0.00010592]
[1734504884217,0.446037,103670.0,103660.0,0.00010592]
[1734504884918,0.446037,103670.0,103660.0,0.04834692]
[1734504885623,0.048237,103670.0,103660.0,0.11983618]
[1734504885926,0.409037,103670.0,103660.0,0.11983618]
[1734504886222,0.409037,103670.0,103660.0,0.04834692]
[1734504889228,0.40516776,103670.0,103660.0,0.04834692]
[1734504895728,0.40516776,103670.0,103660.0,0.11983618]
[1734504895729,0.3608,103670.0,103660.0,0.11983618]
[1734504895935,0.3608,103670.0,103660.0,0.14208622]
[1734504898137,0.3608,103670.0,103660.0,0.11976472]
[1734504899429,0.3608,103680.0,103670.0,0.048237]
[1734504899635,0.3608,103680.0,103670.0,0.1954548]
[1734504904736,0.409024,103700.0,103690.0,0.048227]
[1734504912135,0.3608,103700.0,103690.0,0.1196448]
[1734504912940,0.3608,103700.0,103690.0,0.12870658]
[1734504915640,0.3608,103700.0,103690.0,0.1196448]
[1734504916037,0.43864712,103710.0,103700.0,0.048223]
[1734504916940,0.43477788,103710.0,103700.0,0.048223]
[1734504917331,0.55441368,103710.0,103680.0,0.135256]
[1734504917536,0.7930178,103690.0,103680.0,0.048227]
[1734504917742,0.7216,103690.0,103680.0,0.05127893]
[1734504918047,0.76847656,103690.0,103680.0,0.05127893]
[1734504918731,0.81670356,103690.0,103680.0,0.05127893]
[1734504920045,0.769827,103690.0,103680.0,0.05127893]
[1734504921252,0.769827,103690.0,103680.0,0.048227]
[1734504921539,0.769827,103690.0,103680.0,0.05128957]
[1734504921744,0.769827,103690.0,103680.0,0.048227]
[1734504921948,0.769827,103690.0,103680.0,0.05128995]
[1734504922151,0.769827,103690.0,103680.0,0.12271443]
[1734504922446,0.769827,103690.0,103680.0,0.05128995]
[1734504923040,0.769827,103690.0,103680.0,0.048227]
[1734504923243,0.769827,103690.0,103680.0,0.05129861]
[1734504923742,0.73969562,103690.0,103680.0,0.05129861]
[1734504924350,0.8111201,103690.0,103680.0,0.00307161]
[1734504925550,0.89750025,103690.0,103680.0,0.00307161]
[1734504926136,0.89766581,103690.0,103680.0,0.00307161]
[1734504927852,0.048232,103680.0,103670.0,0.048236]
[1734504928046,0.486332,103680.0,103670.0,0.0512651]
[1734504928846,0.486332,103680.0,103670.0,0.0030291]
[1734504929047,0.55775648,103680.0,103670.0,0.0030291]
[1734504930650,0.486332,103680.0,103670.0,0.0030291]
[1734504930848,0.62918096,103680.0,103670.0,0.0030291]
[1734504931047,0.048237,103670.0,103650.0,0.0005]
[1734504931252,0.048255,103630.0,103620.0,0.086858]
[1734504931450,0.84127948,103630.0,103620.0,0.086858]
[1734504931758,0.769855,103630.0,103620.0,0.086858]
[1734504932157,0.769855,103630.0,103620.0,0.08696726]
[1734504933956,0.769855,103630.0,103620.0,0.04836726]
[1734504934659,0.769855,103630.0,103620.0,0.04886726]
[1734504935258,0.84127948,103630.0,103620.0,0.00060926]
[1734504937249,1.14127948,103630.0,103600.0,0.11]
[1734504937456,0.84128948,103610.0,103600.0,0.11]
[1734504937851,0.769865,103610.0,103600.0,0.11]
[1734504938056,0.84128948,103610.0,103600.0,0.11]
[1734504938260,0.048283,103580.0,103560.0,0.048284]
[1734504938452,0.048274,103590.0,103560.0,0.15630848]
[1734504938453,0.7216,103570.0,103560.0,0.15630848]
[1734504938653,0.3608,103580.0,103570.0,0.048283]
[1734504938852,0.40907,103600.0,103580.0,0.048278]
[1734504939053,0.40907,103600.0,103590.0,0.123674]
[1734504939757,0.3608,103600.0,103590.0,0.19509848]
[1734504941374,0.409069,103600.0,103590.0,0.123674]
[1734504942664,0.3608,103600.0,103590.0,0.123674]
[1734504943063,0.3608,103600.0,103590.0,0.12668958]
[1734504944574,0.3608,103600.0,103590.0,0.19811406]
[1734504944777,0.35693076,103600.0,103590.0,0.19811406]
[1734504945563,0.41061127,103610.0,103590.0,0.19811406]
[1734504945761,0.41061127,103610.0,103600.0,0.048769]
[1734504945966,0.41061127,103610.0,103600.0,0.05178458]
[1734504946881,0.41061127,103610.0,103600.0,0.05128458]
[1734504947067,0.41061127,103610.0,103600.0,0.048269]
[1734504947266,0.41061127,103610.0,103600.0,0.05128438]
[1734504947671,0.41061127,103610.0,103600.0,0.05178438]
[1734504949674,0.41061127,103610.0,103600.0,0.05128438]
[1734504950581,0.36234627,103610.0,103600.0,0.12270886]
[1734504950879,0.36234627,103610.0,103600.0,0.12270888]
[1734504951379,0.41061127,103610.0,103600.0,0.12270888]
[1734504951578,0.41061127,103610.0,103600.0,0.0512844]
[1734504951983,0.36234627,103610.0,103600.0,0.0512844]
[1734504952175,0.36234627,103610.0,103600.0,0.12270888]
[1734504952778,0.36089768,103610.0,103600.0,0.12270888]
[1734504953582,0.36089768,103610.0,103600.0,0.11969348]
[1734504953779,0.36089768,103610.0,103600.0,0.12270866]
[1734504955384,0.33074588,103610.0,103600.0,0.12270866]
[1734504955883,0.33074588,103610.0,103600.0,0.11969348]
[1734504956479,0.33074588,103610.0,103600.0,0.048269]
[1734504956788,0.45043436,103610.0,103600.0,0.048269]
[1734504956985,0.37900988,103610.0,103600.0,0.048269]
[1734504959078,0.41720871,103610.0,103600.0,0.048269]
[1734504959789,0.33074588,103610.0,103600.0,0.11969348]
[1734504960083,0.41720871,103610.0,103600.0,0.11969348]
[1734504960475,0.46547271,103610.0,103600.0,0.11969348]
[1734504960675,0.46547271,103610.0,103600.0,0.048269]
[1734504960982,0.58064625,103610.0,103600.0,0.048269]
[1734504961381,0.53254084,103610.0,103600.0,0.11969348]
[1734504962874,0.53254084,103610.0,103600.0,0.048269]
[1734504963377,0.53254084,103610.0,103600.0,0.11969348]
[1734504963692,0.27647109,103610.0,103600.0,0.15192583]
[1734504963877,0.56271027,103620.0,103600.0,0.20019483]
[1734504964079,0.56271027,103620.0,103610.0,0.11977662]
[1734504964283,0.56271027,103620.0,103610.0,0.15917662]
[1734504964487,0.08673673,103620.0,103610.0,0.45917662]
[1734504964791,0.20179496,103630.0,103610.0,0.85220897]
[1734504965088,0.20179496,103640.0,103630.0,0.048255]
[1734504965289,0.08662142,103640.0,103630.0,0.12874126]
[1734504965485,0.56259496,103640.0,103630.0,0.11967948]
[1734504965791,0.56309496,103640.0,103630.0,0.12874126]
[1734504965983,0.56309496,103640.0,103630.0,0.11967948]
[1734504966290,0.44792142,103640.0,103630.0,0.11967948]
[1734504966786,0.44742142,103640.0,103630.0,0.11967948]
[1734504966983,0.08662142,103640.0,103630.0,0.48954126]
[1734504967184,0.44753219,103650.0,103640.0,0.04825]
[1734504967391,0.44753219,103650.0,103640.0,0.15757448]
[1734504968491,0.36091077,103650.0,103640.0,0.15757448]
[1734504968695,7.7e-07,103650.0,103640.0,0.88979896]
[1734504968887,0.00144789,103660.0,103640.0,0.88979896]
[1734504969190,0.00144789,103660.0,103650.0,0.55189496]
[1734504969495,0.00144789,103660.0,103650.0,0.62869496]
[1734504969691,0.00144789,103660.0,103650.0,0.92869496]
[1734504969888,0.00144789,103660.0,103650.0,0.9287642]
[1734504970087,0.00144789,103660.0,103650.0,0.6287642]
[1734504970392,0.3608,103670.0,103650.0,0.9287642]
[1734504970698,0.3608,103670.0,103660.0,0.11966548]
[1734504972789,0.35693076,103670.0,103660.0,0.11966548]
[1734504973984,0.40516676,103670.0,103660.0,0.11966548]
[1734504974194,0.35693076,103670.0,103660.0,0.11966548]
[1734504974487,0.409033,103680.0,103670.0,0.048236]
[1734504974488,0.3608,103680.0,103670.0,0.048236]
[1734504974683,0.3608,103680.0,103670.0,0.11966048]
[1734504976098,0.409032,103680.0,103670.0,0.048236]
[1734504977797,0.48045648,103680.0,103670.0,0.048236]
[1734504977995,0.409032,103680.0,103670.0,0.048236]
[1734504978493,0.3608,103680.0,103670.0,0.11966048]
[1734504978693,0.36086943,103690.0,103680.0,0.048232]
[1734504979001,0.36086943,103690.0,103680.0,0.15705648]
[1734504979304,6.943e-05,103690.0,103680.0,0.15705648]
[1734504979798,6.943e-05,103690.0,103680.0,0.19355648]
[1734504980499,6.943e-05,103690.0,103680.0,0.26498096]
[1734504982202,6.943e-05,103690.0,103680.0,0.19355648]
[1734504982496,0.36086943,103690.0,103680.0,0.15705648]
[1734504982798,0.36086943,103690.0,103680.0,0.11965648]
[1734504983586,0.36086943,103690.0,103680.0,0.048232]
[1734504983801,0.40909643,103690.0,103680.0,0.048232]
[1734504985701,0.40959643,103690.0,103680.0,0.048232]
[1734504985898,0.40959643,103690.0,103660.0,0.56749948]
[1734504986088,0.409033,103680.0,103670.0,0.048234]
[1734504986689,0.445033,103680.0,103670.0,0.048234]
[1734504987201,0.445033,103680.0,103670.0,0.11965848]
[1734504987400,0.445033,103680.0,103670.0,0.048234]
[1734504988812,0.048241,103670.0,103660.0,0.04824]
[1734504989098,0.447241,103670.0,103660.0,0.04824]
[1734504989806,0.447241,103670.0,103660.0,0.11966448]
[1734504990694,0.3608,103670.0,103660.0,0.11966448]
[1734504990908,0.48046048,103670.0,103650.0,0.04831224]
[1734504991095,0.447441,103660.0,103650.0,0.04831224]
[1734504991400,0.4361,103660.0,103650.0,0.11973672]
[1734504991595,0.3992,103660.0,103650.0,0.11973672]
[1734504992706,0.447441,103660.0,103650.0,0.11973672]
[1734504993204,0.3992,103660.0,103650.0,0.11973672]
[1734504994805,0.3608,103660.0,103650.0,0.1911612]
[1734504995103,0.3608,103660.0,103650.0,0.11973672]
[1734504996706,0.3608,103660.0,103650.0,0.1911612]
[1734504996909,0.3608,103660.0,103650.0,0.11973672]
[1734504997097,0.3608,103660.0,103650.0,0.1911612]
[1734504997299,0.3608,103660.0,103650.0,0.2289612]
[1734504997611,0.3608,103660.0,103650.0,0.15753672]
[1734504998116,0.3608,103660.0,103650.0,0.2289612]
[1734504999004,0.3608,103660.0,103650.0,0.15753672]
[1734504999406,0.3608,103660.0,103650.0,0.2289612]
[1734504999605,0.3608,103660.0,103650.0,0.15753672]
[1734504999802,0.3608,103660.0,103650.0,0.2289612]
[1734505000014,0.3608,103660.0,103650.0,0.15753672]
[1734505001113,0.409041,103660.0,103650.0,0.11973672]
[1734505001305,0.40517176,103660.0,103650.0,0.11973672]
[1734505001613,0.40517176,103660.0,103650.0,0.04831224]
[1734505001799,0.40517176,103660.0,103650.0,0.11973672]
[1734505004810,0.40517176,103660.0,103650.0,0.04831224]
[1734505005813,0.49179318,103660.0,103650.0,0.04831224]